{"text_format":"1","workbook":"xlsx","n_sheets":2,"sheets":["offerte","kopieblad"],"not_rendered":{"charts":0,"images":4,"macros":1,"external_links":0,"defined_names":1,"comments":0,"pivot_tables":0},"unopened":[],"bounds":{"document_bytes":16777216,"sheet_cells":100000,"rows_first":2000,"rows_last":500,"rows_between":2000,"halvings":0,"cell_chars":16384,"cell_head_chars":4096},"cells_cut":0,"cells_raw":0,"read":"whole","date_system":"1900"}

{"sheet":"offerte","index":0,"n_rows":35,"n_cols":10,"rows_kept":35,"cut":false,"hidden":false,"merged":[[34,6,34,7],[33,6,33,7],[33,2,35,4],[26,3,26,5],[27,3,27,5],[28,3,28,5],[26,6,26,7],[27,6,27,7],[31,3,31,5],[31,6,31,7],[29,3,29,5],[29,6,29,7],[30,3,30,5],[30,6,30,7],[28,6,28,7],[2,4,2,6],[3,4,3,6],[14,3,14,5],[15,3,15,5],[23,3,23,5],[22,6,22,7],[5,2,5,8],[13,2,13,5],[13,7,13,8],[14,7,14,8],[17,3,17,5],[18,3,18,5],[19,3,19,5],[19,6,19,7],[20,3,20,5],[20,6,20,7],[18,6,18,7],[22,3,22,5],[25,3,25,5],[25,6,25,7],[21,3,21,5],[21,6,21,7],[24,3,24,5],[24,6,24,7],[23,6,23,7]]}
[]
[]
[null,null,"Kandidaatnaam: "]
[null,null,"Kandidaatnummer: "]
[]
[null,null,"OFFERTE"]
[]
[null,null,"Roompot Beach Resort"]
[null,null,"Mariapolderseweg 1"]
[null,null,"4493 PH Kamperland"]
[null,null,"Zeeland"]
[null,null,"Nederland"]
[]
[null,null,"offerte voor: ",null,null,null,null,"offertedatum: "]
[null,null,"naam: "]
[null,null,"e-mailadres: "]
[]
[null,null,"aantal ","omschrijving ",null,null,"prijs per eenheid",null,"totaal ","formules"]
[]
[]
[]
[]
[]
[]
[]
[]
[]
[]
[]
[]
[]
[null,null,null,null,null,null,"subtotaal "]
[]
[null,null,"ANWB-actie! Indien u lid bent van de ANWB, ontvangt u 5% korting op de huurprijs van uw accommodatie.",null,null,null,"korting ANWB-actie "]
[null,null,null,null,null,null,"totaal "]

{"sheet":"kopieblad","index":1,"n_rows":31,"n_cols":6,"rows_kept":31,"cut":false,"hidden":false,"merged":[[30,2,31,5]]}
[]
[null,null,{"$f":"offerte!C8","v":"Roompot Beach Resort"}]
[null,null,{"$f":"offerte!C9","v":"Mariapolderseweg 1"}]
[null,null,{"$f":"offerte!C10","v":"4493 PH Kamperland"}]
[null,null,{"$f":"offerte!C11","v":"Zeeland"}]
[null,null,{"$f":"offerte!C12","v":"Nederland"}]
[]
[null,null,{"$f":"offerte!C14","v":"offerte voor: "},null,null,{"$f":"offerte!H14","v":"offertedatum: "}]
[null,null,{"$f":"IF(offerte!D15=\"\",\"\",offerte!D15)","v":""},null,null,{"$f":"offerte!H15","v":"00:00:00"}]
[null,null,{"$f":"IF(offerte!D16=\"\",\"\",offerte!D16)","v":""}]
[]
[null,null,{"$f":"offerte!C18","v":"aantal "},{"$f":"offerte!D18","v":"omschrijving "},{"$f":"offerte!G18","v":"prijs per eenheid"},{"$f":"offerte!I18","v":"totaal "}]
[]
[]
[]
[]
[]
[]
[]
[]
[]
[]
[]
[]
[]
[null,null,null,null,{"$f":"offerte!G32","v":"subtotaal "},{"$f":"offerte!I32","v":0}]
[]
[null,null,null,null,{"$f":"offerte!G34","v":"korting ANWB-actie "},{"$f":"offerte!I34","v":0}]
[null,null,null,null,{"$f":"offerte!G35","v":"totaal "},{"$f":"offerte!I35","v":0}]
[]
[null,null,"ANWB-actie! Indien u lid bent van de ANWB, ontvangt u \n5% korting op de huurprijs van uw accommodatie."]